bitfinex-derivatives/quotes_SOLF0:USTF0_20260311
["timestamp","ask_amount","ask_price","bid_price","bid_amount"]
[1773216500269,3.96040957,85.377,85.345,0.07742777]
[1773216500573,10.821283,85.414,85.345,0.07742777]
[1773216500574,3.80862396,85.407,85.37,2.63119315]
[1773216502174,3.80862396,85.404,85.36,2.63119315]
[1773216504073,3.80862396,85.404,85.373,0.07583118]
[1773216504272,3.80862396,85.401,85.373,0.07583118]
[1773216504476,3.80862396,85.401,85.36,2.63119315]
[1773216505179,3.80862396,85.4,85.36,2.63119315]
[1773216506475,10.538,85.399,85.36,2.63119315]
[1773216506879,3.80862396,85.398,85.36,2.63119315]
[1773216508879,0.07543627,85.388,85.36,2.63119315]
[1773216509677,0.07543627,85.388,85.36,2.63281254]
[1773216510880,3.80862396,85.387,85.319,2.38515013]
[1773216511182,3.80862396,85.387,85.286,35.11]
[1773216511183,3.80862396,85.379,85.34,2.63281254]
[1773216512278,0.07557711,85.368,85.34,2.63281254]
[1773216513182,3.80862396,85.367,85.33,2.63281254]
[1773216513478,3.80862396,85.359,85.31,2.63281254]
[1773216514084,10.545,85.342,85.31,2.63281254]
[1773216514280,3.80862396,85.347,85.3,2.63281254]
[1773216514481,3.80862396,85.347,85.301,2.37528207]
[1773216514685,3.80862396,85.347,85.31,2.63281254]
[1773216515087,0.07454143,85.332,85.31,2.63281254]
[1773216519285,0.07454143,85.332,85.31,5.03778705]
[1773216520387,0.07454143,85.332,85.32,2.63281254]
[1773216522389,0.07454143,85.332,85.31,5.03778705]
[1773216523290,0.07454143,85.332,85.31,2.63281254]
[1773216523993,3.72708576,85.359,85.321,2.33287305]
[1773216524293,3.72708576,85.379,85.34,2.63281254]
[1773216525082,3.72708576,85.379,85.271,21.108]
[1773216525083,10.539,85.388,85.35,2.63281254]
[1773216525286,3.72708576,85.387,85.34,2.63281254]
[1773216525591,3.72708576,85.387,85.351,0.07595607]
[1773216526292,2.63281254,85.39,85.351,0.07595607]
[1773216526293,3.72708576,85.376,85.351,0.07595607]
[1773216527993,3.72708576,85.373,85.351,0.07595607]
[1773216529491,10.541,85.369,85.351,0.07595607]
[1773216530890,3.72708576,85.373,85.351,0.07595607]
[1773216531086,10.54,85.378,85.351,0.07595607]
[1773216531286,3.85133724,85.387,85.36,2.63281254]
[1773216531487,3.85133724,85.387,85.351,0.07595607]
[1773216535099,2.63281254,85.4,85.351,0.07595607]
[1773216535100,3.85133724,85.4,85.37,2.63281254]
[1773216535498,3.85133724,85.4,85.36,2.63281254]
[1773216536094,3.85133724,85.412,85.37,4.84221481]
[1773216536295,3.85133724,85.429,85.38,2.63281254]
[1773216536904,3.85133724,85.429,85.38,4.83431678]
[1773216537408,3.85133724,85.429,85.396,0.07598497]
[1773216538405,10.535,85.419,85.396,0.07598497]
[1773216540909,3.85133724,85.429,85.396,0.07598497]
[1773216542514,3.85133724,85.426,85.396,0.07598497]
[1773216543514,3.85133724,85.424,85.396,0.07598497]
[1773216544210,3.85133724,85.422,85.396,0.07598497]
[1773216545809,3.85133724,85.414,85.38,2.63281254]
[1773216546010,3.85133724,85.429,85.381,2.15901005]
[1773216546203,3.85133724,85.429,85.4,2.63281254]
[1773216546408,3.85133724,85.449,85.41,2.63281254]
[1773216546907,3.85133724,85.447,85.401,2.15901005]
[1773216547208,3.85133724,85.439,85.39,2.63281254]
[1773216547714,2.63281254,85.43,85.39,2.63281254]
[1773216548207,3.85133724,85.429,85.389,2.14413842]
[1773216549006,3.85133724,85.419,85.376,2.10146316]
[1773216549207,3.85133724,85.419,85.37,2.63281254]
[1773216550012,0.07804266,85.403,85.37,2.63281254]
[1773216550907,0.07804266,85.403,85.381,2.10112638]
[1773216551514,10.536,85.412,85.37,2.63281254]
[1773216551515,14.38733724,85.412,85.37,2.63281254]
[1773216552520,14.38733724,85.412,85.37,4.73393892]
[1773216553714,0.07708687,85.4,85.37,4.73393892]
[1773216554117,0.07708687,85.4,85.371,2.10829696]
[1773216560009,0.07708687,85.4,85.361,10.542]
[1773216560010,4.04601386,85.399,85.361,10.542]
[1773216561125,0.07708687,85.4,85.362,2.11488711]
[1773216561713,0.07708687,85.4,85.371,2.11488711]
[1773216562214,10.536,85.413,85.371,2.11488711]
[1773216562719,0.07390286,85.394,85.371,2.11488711]
[1773216562912,0.07390286,85.394,85.37,2.63281254]
[1773216563111,0.07390286,85.394,85.36,2.63281254]
[1773216564116,0.07390286,85.394,85.358,2.12321853]
[1773216565119,14.58501386,85.39,85.35,2.63281254]
[1773216565328,0.07390286,85.394,85.34,2.63281254]
[1773216565329,4.04601386,85.379,85.34,2.63281254]
[1773216565624,10.541,85.372,85.33,4.744078]
[1773216565921,4.04601386,85.371,85.33,4.744078]
[1773216566517,2.63281254,85.37,85.33,4.744078]
[1773216566716,2.63281254,85.37,85.33,2.11126546]
[1773216566918,4.04601386,85.366,85.321,10.547]
[1773216567123,4.04601386,85.366,85.32,2.63281254]
[1773216567428,4.04601386,85.366,85.314,2.11630959]
[1773216567429,6.6788264,85.36,85.314,2.11630959]
[1773216567629,6.6788264,85.36,85.32,2.63281254]
[1773216567829,10.821283,85.412,85.32,2.63281254]
[1773216567830,4.04601386,85.369,85.322,2.11630959]
[1773216568221,4.04601386,85.369,85.33,2.63281254]
[1773216568427,4.04601386,85.369,85.33,4.74912213]
[1773216568625,4.04601386,85.369,85.334,10.546]
[1773216568821,2.63281254,85.38,85.334,10.546]
[1773216568822,2.63281254,85.38,85.334,12.68898819]
[1773216569026,4.04601386,85.379,85.334,2.14298819]
[1773216569226,6.6788264,85.37,85.331,2.14298819]
[1773216569426,6.6788264,85.37,85.308,11.8]
[1773216569427,4.04601386,85.369,85.32,2.63281254]
[1773216569625,4.04601386,85.369,85.321,2.14298819]
[1773216570031,4.04601386,85.369,85.33,2.63487407]
[1773216571032,10.542,85.368,85.33,2.63487407]
[1773216572126,4.04601386,85.369,85.331,2.14816678]
[1773216572326,4.04601386,85.382,85.34,2.63487407]
[1773216572931,0.07437399,85.37,85.34,2.63487407]
[1773216574930,0.07437399,85.37,85.333,2.14816678]
[1773216575330,2.70924806,85.37,85.333,2.14816678]
[1773216576233,0.07437399,85.37,85.333,2.14816678]
[1773216577033,2.70924806,85.37,85.333,2.14816678]
[1773216577238,4.04601386,85.369,85.32,2.63487407]
[1773216577637,2.63487407,85.36,85.32,2.63487407]
[1773216577936,4.04601386,85.36,85.321,2.13406242]
[1773216578636,0.07563024,85.349,85.321,2.13406242]
[1773216581234,0.07563024,85.349,85.311,10.549]
[1773216581435,0.07563024,85.349,85.32,2.63487407]
[1773216581739,0.07563024,85.349,85.33,4.77633961]
[1773216583738,4.05635157,85.372,85.331,2.14215874]
[1773216584339,4.05635157,85.385,85.341,2.14215874]
[1773216585439,10.54,85.384,85.341,2.14215874]
[1773216585735,4.05635157,85.383,85.341,2.14215874]
[1773216586137,4.05635157,85.383,85.354,0.07392679]
[1773216587444,2.63487407,85.38,85.354,0.07392679]
[1773216587943,2.63487407,85.38,85.341,2.14215874]
[1773216589444,6.69122564,85.38,85.341,2.14215874]
[1773216589636,3.82241367,85.377,85.33,13.18087407]
[1773216589941,3.82241367,85.377,85.33,4.7531395]
[1773216590938,3.82241367,85.377,85.345,0.07496335]
[1773216594038,3.82241367,85.389,85.345,10.61896335]
[1773216594238,3.82241367,85.389,85.346,2.12250566]
[1773216595742,3.82241367,85.389,85.35,4.76139393]
[1773216595945,3.82241367,85.389,85.351,2.12651986]
[1773216598241,2.63487407,85.4,85.335,2.12280928]
[1773216598242,2.63487407,85.38,85.335,2.12280928]
[1773216598447,3.82241367,85.369,85.321,2.12280928]
[1773216598846,0.0762476,85.366,85.321,2.12280928]
[1773216599248,0.0762476,85.366,85.32,2.63487407]
[1773216599249,0.0762476,85.366,85.328,2.1201655]
[1773216599747,0.0762476,85.366,85.341,2.1201655]
[1773216600344,0.0762476,85.366,85.344,10.544]
[1773216600540,0.0762476,85.366,85.33,2.63487407]
[1773216600741,0.0762476,85.366,85.33,4.75503957]
[1773216600939,0.0762476,85.366,85.331,2.11696152]
[1773216601340,0.0762476,85.366,85.334,10.546]
[1773216601540,0.0762476,85.366,85.331,2.11696152]
[1773216601951,0.0762476,85.366,85.343,2.11696152]
[1773216602149,2.63487407,85.39,85.343,2.11696152]
[1773216602448,2.63487407,85.39,85.346,0.07476903]
[1773216602644,2.63487407,85.39,85.347,2.04071392]
[1773216603151,3.82241367,85.407,85.351,2.069192]
[1773216603342,3.82241367,85.407,85.353,2.069192]
[1773216603545,3.82241367,85.407,85.361,2.069192]
[1773216603749,3.82241367,85.407,85.364,2.069192]
[1773216605846,3.82241367,85.407,85.377,0.07519318]
[1773216606454,3.82241367,85.399,85.377,0.07519318]
[1773216606655,3.82241367,85.399,85.354,10.543]
[1773216607056,3.82241367,85.399,85.351,2.13388307]
[1773216607651,3.82241367,85.397,85.352,10.544]
[1773216608048,0.07543495,85.384,85.352,10.544]
[1773216609153,2.63487407,85.38,85.338,2.22097028]
[1773216609348,3.82241367,85.379,85.33,2.63487407]
[1773216609653,3.82241367,85.37,85.328,11.8]
[1773216609849,3.82241367,85.37,85.325,2.22097028]
[1773216610250,3.82241367,85.37,85.33,2.63487407]
[1773216610846,0.07484567,85.359,85.33,2.63487407]
[1773216611047,3.82241367,85.399,85.351,2.23563346]
[1773216611246,3.82241367,85.399,85.35,2.63487407]
[1773216611747,3.82241367,85.389,85.35,2.63487407]
[1773216612143,3.82241367,85.389,85.351,2.23563346]
[1773216613253,3.82241367,85.389,85.361,0.0752211]
[1773216615356,3.82241367,85.386,85.361,0.0752211]
[1773216615559,3.82241367,85.386,85.341,10.545]
[1773216615756,3.82241367,85.386,85.291,29.07929132]
[1773216615757,3.82241367,85.379,85.33,2.63487407]
[1773216617355,3.82241367,85.385,85.34,2.63487407]
[1773216618558,3.82241367,85.38,85.34,2.63487407]
[1773216620756,0.07489021,85.369,85.34,2.63487407]
[1773216622169,3.97097785,85.369,85.33,2.63487407]
[1773216622660,3.89608764,85.369,85.33,2.63487407]
[1773216624068,0.0747766,85.358,85.33,2.63487407]
[1773216625871,3.97086424,85.358,85.321,10.547]
[1773216626070,3.97086424,85.358,85.32,2.63487407]
[1773216628070,0.0747766,85.358,85.321,2.22042963]
[1773216630674,0.0747766,85.358,85.331,2.2114743]
[1773216631266,14.43708764,85.372,85.331,2.2114743]
[1773216632167,3.89608764,85.372,85.333,2.19209421]
[1773216632373,6.53061285,85.38,85.333,2.19209421]
[1773216632970,3.89608764,85.379,85.333,2.19209421]
[1773216633369,3.89608764,85.379,85.334,10.546]
[1773216633571,3.89608764,85.379,85.335,2.19828337]
[1773216635065,0.07392535,85.366,85.335,2.19828337]
[1773216636372,3.97001299,85.366,85.33,2.63452521]
[1773216636574,3.97001299,85.366,85.323,2.20439689]
[1773216638374,0.07392535,85.366,85.333,2.20459448]
[1773216639374,0.07392535,85.366,85.333,12.75059448]
[1773216641478,0.07392535,85.366,85.333,2.20459448]
[1773216644483,10.79353394,85.408,85.341,2.13311948]
[1773216644484,3.71407344,85.398,85.341,2.13311948]
[1773216644680,3.71407344,85.398,85.33,11.8]
[1773216644681,3.71407344,85.398,85.351,2.13311948]
[1773216644881,3.71407344,85.409,85.37,10.541]
[1773216645282,3.71407344,85.399,85.363,11.8]
[1773216645983,3.71407344,85.399,85.372,0.075489]
[1773216646181,10.538,85.397,85.372,0.075489]
[1773216647980,10.537,85.406,85.372,0.075489]
[1773216648284,6.34859865,85.4,85.372,0.075489]
[1773216648486,6.34859865,85.4,85.364,2.19966266]
[1773216648677,10.538,85.398,85.352,11.8]
[1773216648882,10.538,85.398,85.352,13.98367015]
[1773216649082,10.538,85.398,85.353,2.18367015]
[1773216649282,10.538,85.398,85.354,2.18367015]
[1773216649482,3.8777645,85.392,85.35,2.63452521]
[1773216649886,3.8777645,85.392,85.347,11.8]
[1773216650082,3.8777645,85.392,85.348,2.1791757]
[1773216650588,3.8777645,85.392,85.361,0.07554355]
[1773216651686,2.63452521,85.39,85.361,0.07554355]
[1773216652588,10.539,85.389,85.361,0.07554355]
[1773216656694,3.8777645,85.392,85.361,0.07554355]
[1773216660091,3.8777645,85.403,85.361,2.20795141]
[1773216660487,6.51228971,85.4,85.361,0.07554355]
[1773216660695,6.51228971,85.4,85.35,2.63452521]
[1773216660696,3.8777645,85.399,85.35,4.7678346]
[1773216660894,3.8777645,85.399,85.351,2.13330939]
[1773216661196,3.8777645,85.399,85.372,0.07532385]
[1773216661393,3.8777645,85.398,85.372,0.07532385]
[1773216665396,3.8777645,85.389,85.344,11.8]
[1773216665901,3.8777645,85.387,85.344,11.8]
[1773216667300,3.8777645,85.387,85.34,4.84000424]
[1773216667498,2.63452521,85.38,85.34,2.20547903]
[1773216667697,2.63452521,85.38,85.265,178.0]
[1773216667698,3.8777645,85.379,85.33,4.83408739]
[1773216669702,3.8777645,85.375,85.33,4.83408739]
[1773216669901,0.0768316,85.363,85.33,4.83408739]
[1773216670299,0.0768316,85.363,85.295,35.11]
[1773216670300,3.9545961,85.363,85.32,2.63452521]
[1773216670899,3.8777645,85.363,85.32,2.63452521]
[1773216671305,3.8777645,85.359,85.318,2.20892344]
[1773216671608,3.8777645,85.355,85.318,2.20892344]
[1773216672500,163.889,85.419,85.31,14.43452521]
[1773216672501,6.51228971,85.37,85.321,2.20946727]
[1773216673104,3.8777645,85.368,85.327,2.225152]
[1773216673602,11.8,85.401,85.315,2.225152]
[1773216673603,3.8777645,85.359,85.315,2.225152]
[1773216674004,3.8777645,85.355,85.315,2.225152]
[1773216678101,0.07721337,85.356,85.321,2.24229975]
[1773216679707,3.93757169,85.339,85.3,2.63452521]
[1773216679899,3.93757169,85.339,85.294,2.252333]
[1773216680103,3.93757169,85.339,85.3,4.88685821]
[1773216680300,3.93757169,85.339,85.301,2.252333]
[1773216680605,0.0741946,85.328,85.301,2.252333]
[1773216681202,0.0741946,85.328,85.302,10.55]
[1773216681402,0.0741946,85.328,85.303,2.25227633]
[1773216682602,0.0741946,85.328,85.306,2.25227633]
[1773216683309,0.0741946,85.328,85.308,2.17340059]
[1773216683901,4.01176629,85.328,85.3,11.8]
[1773216685606,4.01176629,85.328,85.3,14.43452521]
[1773216686110,4.01176629,85.328,85.3,11.8]
[1773216687910,0.0741946,85.328,85.3,13.94974616]
[1773216688109,0.0741946,85.328,85.3,16.58427137]
[1773216689711,0.0741946,85.328,85.301,2.15115922]
[1773216692212,0.0741946,85.328,85.303,2.15122195]
[1773216693714,3.93757169,85.327,85.3,11.8]
[1773216693914,3.93757169,85.327,85.292,2.15157711]
[1773216697412,3.93757169,85.327,85.285,10.552]
[1773216697619,3.93757169,85.327,85.28,2.63665642]
[1773216697620,3.8734479,85.325,85.282,11.8]
[1773216698418,3.8734479,85.32,85.283,2.13522937]
[1773216699825,0.07415081,85.31,85.283,2.13522937]
[1773216703718,3.94759871,85.31,85.28,2.63665642]
[1773216705524,0.07415081,85.31,85.28,4.73744149]
[1773216707813,0.07415081,85.31,85.281,2.10091841]
[1773216709425,3.94759871,85.31,85.28,2.63665642]
[1773216709624,3.94759871,85.31,85.276,22.353]
[1773216712629,3.77376782,85.309,85.27,2.63665642]
[1773216712931,3.77376782,85.299,85.264,11.8]
[1773216713127,3.77376782,85.299,85.253,13.84006859]
[1773216713328,3.77376782,85.299,85.253,11.8]
[1773216714327,3.77376782,85.296,85.253,11.8]
[1773216714826,0.07583466,85.285,85.254,2.13127298]
[1773216715023,0.07583466,85.285,85.26,2.63665642]
[1773216715526,0.07583466,85.285,85.261,2.13127298]
[1773216716123,0.07583466,85.285,85.27,2.63665642]
[1773216718431,0.07583466,85.285,85.263,10.555]
[1773216718432,3.77376782,85.272,85.222,3.76010283]
[1773216718627,2.63665642,85.27,85.224,3.76010283]
[1773216718822,3.77376782,85.269,85.224,3.76010283]
[1773216719325,0.0777858,85.255,85.224,3.76010283]
[1773216720529,3.85155362,85.255,85.22,2.63665642]
[1773216722132,0.0777858,85.255,85.23,2.63665642]
[1773216724135,3.85155362,85.255,85.22,2.63665642]
[1773216724334,3.85155362,85.255,85.22,6.39675925]
[1773216724731,3.77376782,85.255,85.22,6.39675925]
[1773216727333,0.07601781,85.246,85.22,6.39675925]
[1773216727534,0.07601781,85.246,85.2,2.04131911]
[1773216727535,3.77376782,85.245,85.21,2.63665642]
[1773216728337,0.07601781,85.246,85.22,2.63665642]
[1773216728537,0.07601781,85.246,85.22,6.39675925]
[1773216728738,0.07601781,85.246,85.221,3.76010283]
[1773216729041,0.07601781,85.246,85.23,2.63665642]
[1773216729534,0.07601781,85.246,85.18,2.04169038]
[1773216729535,3.77376782,85.27,85.24,2.63665642]
[1773216729941,3.77376782,85.27,85.234,10.558]
[1773216734239,3.77376782,85.324,85.298,0.07396498]
[1773216736343,3.77376782,85.348,85.31,2.63665642]
[1773216736547,3.77376782,85.348,85.298,0.07396498]
[1773216736548,3.77376782,85.348,85.3,2.63665642]
[1773216736940,3.77376782,85.344,85.3,2.63665642]
[1773216737442,3.77376782,85.344,85.244,35.16]
[1773216737443,3.77376782,85.329,85.274,3.76010283]
[1773216737945,3.77376782,85.329,85.28,6.39675925]
[1773216738139,3.77376782,85.329,85.281,3.76010283]
[1773216738336,10.547,85.328,85.281,3.76010283]
[1773216738745,3.77376782,85.327,85.281,3.76010283]
[1773216739546,3.77376782,85.327,85.295,0.0743569]
[1773216740442,3.76989633,85.325,85.295,0.0743569]
[1773216741250,3.76989633,85.319,85.27,2.63665642]
[1773216741746,3.76989633,85.319,85.271,3.81899207]
[1773216744539,0.07427504,85.304,85.271,3.81899207]
[1773216745946,0.07427504,85.304,85.281,3.81899207]
[1773216746139,0.07427504,85.304,85.29,2.63665642]
[1773216746339,3.76989633,85.332,85.291,3.81899207]
[1773216746544,3.76989633,85.347,85.31,2.63665642]
[1773216746748,3.76989633,85.361,85.32,2.63665642]
[1773216749447,3.76989633,85.361,85.332,0.07484768]
[1773216750252,10.541,85.369,85.332,0.07484768]
[1773216750950,10.542,85.367,85.332,0.07484768]
[1773216751252,3.76989633,85.366,85.332,0.07484768]
[1773216751654,3.76989633,85.388,85.35,2.63665642]
[1773216751852,11.8,85.429,85.35,2.63665642]
[1773216751853,3.76989633,85.399,85.351,3.81899207]
[1773216752253,10.539,85.391,85.351,3.81899207]
[1773216752453,2.63665642,85.39,85.351,3.81899207]
[1773216752658,3.76989633,85.339,85.286,3.81899207]
[1773216752851,3.76989633,85.339,85.29,2.63665642]
[1773216753244,3.76989633,85.339,85.292,3.81899207]
[1773216753445,3.76989633,85.352,85.301,3.81899207]
[1773216753749,2.63665642,85.35,85.301,3.81899207]
[1773216754150,10.543,85.357,85.311,3.81899207]
[1773216756155,3.76989633,85.365,85.325,0.07471846]
[1773216757045,10.542,85.362,85.325,0.07471846]
[1773216759458,3.76989633,85.365,85.33,2.6356738]
[1773216762854,10.541,85.372,85.331,3.71002463]
[1773216763352,10.541,85.372,85.302,11.8]
[1773216763353,2.6356738,85.39,85.35,2.6356738]
[1773216763658,3.68660305,85.393,85.35,2.6356738]
[1773216764456,10.539,85.385,85.35,2.6356738]
[1773216764954,3.68660305,85.414,85.37,2.6356738]
[1773216765252,2.6356738,85.4,85.349,3.71002463]
[1773216765451,3.68660305,85.389,85.34,2.6356738]
[1773216766459,3.68660305,85.386,85.34,2.6356738]
[1773216766958,10.538,85.4,85.36,2.6356738]
[1773216767359,3.68660305,85.419,85.37,2.6356738]
[1773216767560,3.68660305,85.419,85.36,3.71002463]
[1773216767561,3.68660305,85.4,85.36,6.34569843]
[1773216767753,3.68660305,85.4,85.371,0.07385973]
[1773216768361,10.538,85.397,85.371,0.07385973]
[1773216768659,3.68660305,85.396,85.371,0.07385973]
[1773216769051,3.68660305,85.392,85.371,0.07385973]
[1773216771660,10.537,85.402,85.371,0.07385973]
[1773216771859,14.44206987,85.402,85.371,0.07385973]
[1773216772062,3.90506987,85.401,85.371,0.07385973]
[1773216773359,10.538,85.4,85.371,0.07385973]
[1773216773661,3.90506987,85.399,85.371,0.07385973]
[1773216774460,3.90506987,85.395,85.371,0.07385973]
[1773216777866,14.44006987,85.423,85.381,3.80121695]
[1773216778066,3.90506987,85.423,85.381,3.80121695]
[1773216778961,14.44006987,85.423,85.381,3.80121695]
[1773216779766,14.44006987,85.423,85.39,2.6356738]
[1773216781662,10.533,85.434,85.4,2.6356738]
[1773216781858,3.90506987,85.433,85.39,6.43689075]
[1773216782069,10.535,85.423,85.39,2.6356738]
[1773216782263,14.44006987,85.423,85.381,3.80121695]
[1773216782765,14.44006987,85.423,85.39,2.6356738]
[1773216783361,3.90506987,85.417,85.369,3.80121695]
[1773216783669,3.90506987,85.417,85.38,2.6356738]
[1773216783969,10.538,85.397,85.36,2.6356738]
[1773216785271,14.44206987,85.405,85.36,2.6356738]
[1773216785468,10.537,85.405,85.371,3.80121695]
[1773216786564,2.6356738,85.41,85.371,3.80121695]
[1773216787068,3.90506987,85.409,85.37,2.6356738]
[1773216787369,14.44206987,85.409,85.37,2.6356738]
[1773216787768,3.90506987,85.408,85.36,2.6356738]
[1773216788071,10.537,85.405,85.361,3.80121695]
[1773216789062,10.537,85.405,85.371,3.80121695]
[1773216789264,10.536,85.413,85.371,3.80121695]
[1773216791273,14.44106987,85.413,85.371,3.80121695]
[1773216791472,10.537,85.406,85.371,3.80121695]
[1773216796675,3.90506987,85.405,85.37,2.6356738]
[1773216796974,10.537,85.406,85.371,3.80121695]
[1773216799079,3.90506987,85.428,85.39,2.6356738]
[1773216799269,3.90506987,85.419,85.36,2.6356738]
[1773216799470,26.13778421,85.466,85.36,2.6356738]
[1773216799471,3.90506987,85.409,85.36,2.6356738]
[1773216799678,3.69400775,85.408,85.36,2.6356738]
[1773216801382,14.23100775,85.402,85.36,2.6356738]
[1773216801972,10.538,85.399,85.36,2.6356738]
[1773216802178,3.69400775,85.398,85.36,2.6356738]
[1773216803077,3.69400775,85.379,85.315,3.72521494]
[1773216803385,3.69400775,85.369,85.32,2.6356738]
[1773216803684,10.543,85.36,85.32,2.6356738]
[1773216804083,3.69400775,85.369,85.32,2.6356738]
[1773216804476,10.543,85.358,85.32,2.6356738]
[1773216804682,3.69400775,85.357,85.315,3.72521494]
[1773216804886,3.69400775,85.357,85.32,2.6356738]
[1773216806179,3.69400775,85.357,85.33,0.0740869]
[1773216806386,10.543,85.356,85.33,0.0740869]
[1773216808383,3.69400775,85.357,85.33,0.0740869]
[1773216809492,3.69400775,85.369,85.33,2.7097607]
[1773216810195,3.69400775,85.368,85.33,2.7097607]
[1773216810390,3.69400775,85.368,85.33,0.0740869]
[1773216811289,3.69400775,85.361,85.33,0.0740869]
[1773216815700,3.69400775,85.357,85.31,2.6356738]
[1773216815896,3.69400775,85.349,85.3,2.6356738]
[1773216817603,3.69400775,85.344,85.3,2.63613964]
[1773216819002,0.07440744,85.331,85.3,2.63613964]
[1773216825803,0.07440744,85.331,85.31,2.63613964]
[1773216826608,3.76857786,85.331,85.284,10.552]
[1773216826913,3.76857786,85.331,85.29,2.63613964]
[1773216827108,10.547,85.323,85.29,2.63613964]
[1773216827410,3.69417042,85.331,85.3,2.63613964]
[1773216828308,14.24017042,85.331,85.3,2.63613964]
[1773216828813,14.24017042,85.331,85.29,2.63613964]
[1773216829013,14.24017042,85.331,85.291,3.9042246]
[1773216829915,3.86549896,85.33,85.3,2.63613964]
[1773216831411,3.86549896,85.33,85.291,3.9042246]
[1773216832814,3.86549896,85.33,85.3,2.63613964]
[1773216835416,3.86549896,85.33,85.29,2.63613964]
[1773216836419,3.86549896,85.33,85.239,46.88]
[1773216836420,3.86549896,85.299,85.25,4.02674386]
[1773216836615,3.86549896,85.299,85.25,6.6628835]
[1773216837219,10.551,85.291,85.25,6.6628835]
[1773216837420,10.551,85.291,85.26,2.63613964]
[1773216837617,3.86549896,85.299,85.26,2.63613964]
[1773216838015,3.86549896,85.319,85.27,2.63613964]
[1773216838514,3.86549896,85.315,85.28,2.63613964]
[1773216838713,0.0747945,85.303,85.28,2.63613964]
[1773216839119,14.41149896,85.333,85.29,2.63613964]
[1773216839320,3.86549896,85.332,85.29,2.63613964]
[1773216840017,3.86549896,85.328,85.29,2.63613964]
[1773216840826,10.547,85.323,85.29,2.63613964]
[1773216841023,10.547,85.323,85.281,4.02674386]
[1773216841224,3.86549896,85.328,85.281,4.02674386]
[1773216841225,2.63613964,85.32,85.281,4.02674386]
[1773216841526,3.86549896,85.328,85.281,4.02674386]
[1773216841721,6.5016386,85.37,85.321,4.02674386]
[1773216841925,10.543,85.36,85.321,4.02674386]
[1773216842325,13.17913964,85.36,85.321,4.02674386]
[1773216842719,17.0446386,85.36,85.321,4.02674386]
[1773216842926,3.86549896,85.349,85.306,4.02674386]
[1773216843121,2.63613964,85.34,85.306,4.02674386]
[1773216843319,2.63613964,85.34,85.291,4.02674386]
[1773216843517,2.63613964,85.34,85.301,14.57674386]
[1773216843826,3.86549896,85.349,85.302,4.02674386]
[1773216844627,3.86549896,85.349,85.313,10.548]
[1773216844823,2.63613964,85.36,85.313,10.548]
[1773216845028,3.86549896,85.359,85.313,10.548]
[1773216845329,21.076,85.398,85.281,11.8]
[1773216845330,3.86549896,85.349,85.306,4.02674386]
[1773216845723,3.86549896,85.349,85.307,4.02674386]
[1773216846529,2.63613964,85.35,85.307,4.02674386]
[1773216846732,10.543,85.356,85.307,4.02674386]
[1773216846733,10.543,85.356,85.31,2.63613964]
[1773216846926,10.543,85.356,85.31,6.6628835]
[1773216847335,10.543,85.356,85.31,17.2118835]
[1773216847929,10.543,85.356,85.311,4.02674386]
[1773216849432,3.86549896,85.355,85.311,4.02674386]
[1773216849629,3.86549896,85.355,85.315,4.02674386]
[1773216849835,10.542,85.367,85.321,4.02674386]
[1773216850833,14.40749896,85.367,85.321,4.02674386]
[1773216851032,10.542,85.364,85.321,4.02674386]
[1773216851531,14.40749896,85.364,85.321,4.02674386]
[1773216853233,3.86549896,85.359,85.31,2.63613964]
[1773216853432,3.86549896,85.359,85.311,4.02674386]
[1773216854435,14.40849896,85.358,85.311,4.02674386]
[1773216854732,3.86549896,85.357,85.311,4.02674386]
[1773216855829,0.07461281,85.343,85.311,4.02674386]
[1773216856433,0.07461281,85.343,85.32,2.63613964]
[1773216856631,0.07461281,85.343,85.32,6.6628835]
[1773216856832,0.07461281,85.343,85.321,4.02674386]
[1773216857032,3.86549896,85.357,85.321,4.02674386]
[1773216857734,0.07388008,85.348,85.321,4.02674386]
[1773216858735,3.93937904,85.348,85.303,4.02674386]
[1773216858935,3.93937904,85.348,85.31,2.63613964]
[1773216859131,3.86549896,85.348,85.31,2.63613964]
[1773216859534,3.86549896,85.348,85.311,14.38094354]
[1773216863742,3.86549896,85.348,85.312,3.83194354]
[1773216863943,14.23900556,85.357,85.32,2.63613964]
[1773216866745,3.69600556,85.356,85.32,2.63613964]
[1773216867247,0.07466713,85.347,85.32,2.63613964]
[1773216870852,0.07466713,85.347,85.321,3.83194354]
[1773216871851,10.541,85.375,85.331,3.83194354]
[1773216872051,14.23700556,85.375,85.331,3.83194354]
[1773216872655,10.54,85.383,85.341,3.83194354]
[1773216872856,14.23600556,85.383,85.341,3.83194354]
[1773216873049,3.69600556,85.382,85.353,0.07472823]
[1773216874456,3.69600556,85.38,85.353,0.07472823]
[1773216875454,10.541,85.376,85.353,0.07472823]
[1773216875656,3.69600556,85.375,85.353,0.07472823]